Cogmind - Beta 13 @@@ ROGUE MODE // 2024.06.03 @ 04:59:57 Player: naththebg Result: Destroyed by as-82810 with Assembled Rifle Performance ------------- Evolutions (0) 0 Regions Visited (2) 400 Robots Destroyed (20) 100 Value Destroyed (523) 523 Prototype IDs (3) 60 Alien Tech Used (0) 0 Bonus (0) 0 TOTAL SCORE: 1083 Bonus ------- None Cogmind --------- Core Integrity 0/250 Matter 212/300 Energy 140/140 System Corruption 0% Temperature Hot (224) Movement Rolling (95) Ox1 Location -10/Mines Parts ------- > --- POWER (1) -------- Light Deuterium Engine > --- PROPULSION (2) --- Wheel Wheel > --- UTILITY (2) ------ Large Storage Unit Propulsion Shielding > --- WEAPON (2) ------- Improved Light Cannon Improved Light Cannon > --- INVENTORY (15) --- Light Treads Huge Storage Unit Medium Laser Assault Rifle Assault Rifle Assault Rifle Mining Claw Peak State ------------ > --- POWER ------------ Light Deuterium Engine > --- PROPULSION ------- Wheel Wheel > --- UTILITY ---------- Large Storage Unit Propulsion Shielding > --- WEAPON ----------- Improved Light Cannon Improved Light Cannon > --- INVENTORY -------- Light Treads Huge Storage Unit Medium Laser Assault Rifle Assault Rifle Assault Rifle Mining Claw [Rating: 11] Favorites ----------- Power Ion Engine Engine Ion Engine Propulsion Light Treads Treads Light Treads Wheel Wheel Utility Large Storage Unit Storage Large Storage Unit Protection Propulsion Shielding Weapon Assault Rifle Ballistic Gun Assault Rifle Ballistic Cannon Improved Light Cannon Launcher Grenade Launcher Build | -11 -10 -10 ------- Run | Yrd Mat Min Slots Evolved . | . . . Power . | . . . Propulsion . | . . . Utility . | . . . Weapon . | . . . Parts Attached 25 | 6 8 11 Power 3 | 1 . 2 Engine 3 | 1 . 2 Core . | . . . Reactor . | . . . Propulsion 10 | 2 4 4 Treads 8 | 2 4 2 Leg . | . . . Wheel 2 | . . 2 Hover . | . . . Flight . | . . . Utility 4 | 1 2 1 Device . | . . . Storage 2 | 1 1 . Processor . | . . . Hackware . | . . . Protection 2 | . 1 1 Artifact . | . . . Weapon 8 | 2 2 4 Energy Gun . | . . . Energy Cannon . | . . . Ballistic Gun 3 | 2 1 . Ballistic Cannon 4 | . . 4 Launcher 1 | . 1 . Special Weapon . | . . . Impact Weapon . | . . . Slashing Weapon . | . . . Piercing Weapon . | . . . Special Melee Weapon . | . . . Unidentified Prototypes . | . . . Parts Lost 10 | . 2 8 Power 2 | . . 2 Propulsion 3 | . . 3 Utility 2 | . 1 1 Weapon 3 | . 1 2 Highest Loss Streak 8 | . 1 8 To Critical Strikes . | . . . Average Slot Usage (%) 88 | . 86 94 Engine 13 | . 14 12 Treads 24 | . 27 8 Wheel 3 | . . 17 Storage 14 | . 14 14 Protection 3 | . 2 12 Ballistic Gun 17 | . 21 1 Ballistic Cannon 4 | . . 26 Launcher 5 | . 6 . Naked Turns . | . . . Heaviest Build 34 | 14 30 34 Greatest Support 40 | 40 40 40 Greatest Overweight (x) 1 | . . 1 Average Overweight (x) . | . . . Largest Inventory Capacity 15 | 8 15 15 Average Capacity 14 | 7 14 15 Most Carried 15 | 4 15 14 Average Carried 9 | 2 9 9 Final Capacity 15 | 8 15 15 Final Carried 14 | 4 14 7 Class Distribution -------------------- 100% | Mutant Dominant Class ---------------- Mutant | -10/Materials Mutant | -10/Mines Resources | -11 -10 -10 ----------- Run | Yrd Mat Min Matter Collected 781 | 202 337 242 Remotely . | . . . Salvage Created 426 | . 404 22 Parts 30 | . 28 2 Haulers Intercepted 1 | . 1 . Recyclers Shooed . | . . . Parts Field Recycled . | . . . Retrieved Matter . | . . . Parts Self-Destructed . | . . . Prevented . | . . . Kills | -11 -10 -10 ------- Run | Yrd Mat Min Combat Hostiles Destroyed 15 | . 13 2 Guns 9 | . 9 . Cannons 2 | . . 2 AOE 4 | . 4 . Classes Destroyed 6 | . 5 1 Worker 2 | . 1 1 Hauler 1 | . 1 . Watcher 2 | . 2 . Swarmer 6 | . 6 . Grunt 7 | . 7 . Demolisher 2 | . . 2 Best Kill Streak 4 | . 4 2 Combat Bots Only 4 | . 4 2 Max Kills in Single Turn 2 | . 2 1 Gunslinging . | . . . Exploded 1 | . 1 . Melee . | . . . Uniques/NPCs Destroyed . | . . . Combat | -11 -10 -10 -------- Run | Yrd Mat Min Hostile Shots Fired 114 | . 70 44 Missed 29 | . 19 10 Damage Taken 1697 | . 572 1125 Core 260 | . 66 194 Absorbed by Shields . | . . . Redirected to Shielding 67 | . . 67 Core Remaining (%) 100 | 100 . . Volleys Fired 63 | . 39 24 Largest 2 | . 2 2 Hottest 78 | . 50 78 Shots Fired 124 | . 77 47 Gun 68 | . 68 . Cannon 47 | . . 47 Launcher 9 | . 9 . Special . | . . . Kinetic 115 | . 68 47 Thermal . | . . . Explosive 9 | . 9 . Electromagnetic . | . . . Robot Hit Streak 10 | . 10 3 Robot Miss Streak 6 | . 4 6 Penetration Max . | . . . Secondary Targets 2 | . 2 . Max Gunslinging Chain 1 | . 1 . Shots Hit Robots 65 | . 48 17 Core Hits 36 | . 30 6 Critical Kills . | . . . Critical Parts Destroyed . | . . . Critical Strikes . | . . . Melee Attacks . | . . . Impact . | . . . Slashing . | . . . Piercing . | . . . Sneak Attacks . | . . . Combat Hostiles . | . . . Follow-up Attacks . | . . . Damage Inflicted 1462 | . 1036 426 Guns 603 | . 603 . Cannons 367 | . . 367 Explosions 483 | . 424 59 Melee . | . . . Ramming 9 | . 9 . Kinetic 970 | . 603 367 Thermal 59 | . . 59 Explosive 424 | . 424 . Electromagnetic . | . . . Impact . | . . . Slashing . | . . . Piercing . | . . . Highest Corruption . | . . . Average Corruption . | . . . Corruption Purged . | . . . Corruption Blocked . | . . . Overload Shots . | . . . Overflow Damage 57 | . 50 7 Projectiles . | . . . Explosions 57 | . 50 7 Melee . | . . . Knockbacks 9 | . . 9 Impact . | . . . Kinetic 9 | . . 9 Secondary . | . . . Self-Inflicted Damage 137 | . 57 80 Shots 4 | . 2 2 Rammed 3 | . 3 . Targets Rammed 3 | . 3 . Kicked . | . . . Crushed . | . . . Highest Temperature 224 | . 5 224 Average Temperature 69 | . 3 78 Received Heat Transfer 192 | . 192 . Effects 1 | . . 1 Interference 1 | . . 1 Siege Activations . | . . . Robots Corrupted . | . . . Combat Hostiles . | . . . Parts Fried . | . . . Impact Corruptions . | . . . Robots Melted . | . . . Combat Hostiles . | . . . Parts Melted . | . . . Heat Transferred 100 | . . 100 Parts Sabotaged . | . . . Parts Stolen . | . . . Parts Stripped . | . . . Power Chain Reactions . | . . . Alert | -11 -10 -10 ------- Run | Yrd Mat Min Peak Influence 264 | . 264 140 Initial 28 | . . 28 Average 77 | . 76 107 Maximum Alert Level 1 | . 1 . Low Security (%) 87 | 100 84 100 Level 1 12 | . 15 . Level 2 . | . . . Level 3 . | . . . Level 4 . | . . . Level 5 . | . . . High Security . | . . . Max Security . | . . . Squads Dispatched 3 | . 3 . Investigation 2 | . 2 . Extermination . | . . . Reinforcement 1 | . 1 . Assault . | . . . Garrison . | . . . Intercept . | . . . Searches Triggered . | . . . Construction Impeded . | . . . Haulers Reinforced . | . . . Active Scanning Responses . | . . . Cargo Convoy Interrupts . | . . . Stealth | -11 -10 -10 --------- Run | Yrd Mat Min Distress Signals 3 | . 1 2 Communications Jammed . | . . . Distress Signals . | . . . Times Spotted 27 | . 20 7 Peak Tracking Total 6 | . 6 5 Tactical Retreats 1 | . 1 . Traps | -11 -10 -10 ------- Run | Yrd Mat Min Traps Triggered 3 | . 3 . Indirectly . | . . . Trap Hack Attempts . | . . . Triggered . | . . . Disarmed . | . . . Reprogrammed . | . . . Reused . | . . . Traps Extracted . | . . . Installed . | . . . Triggered . | . . . Machines | -11 -10 -10 ---------- Run | Yrd Mat Min Machines Disabled 10 | . 4 6 Max in Single Turn 4 | . 1 4 Machines Repaired . | . . . Machines Dismantled . | . . . Machines Sabotaged . | . . . Overloaded Fab Kills . | . . . Hacking | -11 -10 -10 --------- Run | Yrd Mat Min Machines Accessed 8 | . 8 . Terminals 6 | . 6 . Fabricators . | . . . Repair Stations 1 | . 1 . Recycling Units 1 | . 1 . Scanalyzers . | . . . Garrison Access . | . . . Total Hacks 22 | . 22 . Successful 11 | . 11 . Failed 11 | . 11 . Catastrophic 5 | . 5 . Database Lockouts . | . . . Manual 8 | . 8 . Terminals 17 | . 17 . Fabricators . | . . . Repair Stations 3 | . 3 . Recycling Units 2 | . 2 . Scanalyzers . | . . . Garrison Access . | . . . Terminal Hacks 9 | . 9 . Prototype ID Bank 2 | . 2 . Level Access Points 1 | . 1 . Alert Level 4 | . 4 . Unreport Threat 2 | . 2 . Fabricator Hacks . | . . . Repair Station Hacks 1 | . 1 . Refit 1 | . 1 . Recycling Unit Hacks . | . . . Scanalyzer . | . . . Garrison Access Hacks . | . . . Unauthorized Hacks 1 | . 1 . Terminals 1 | . 1 . Botnet 1 | . 1 . Fabricators . | . . . Repair Stations . | . . . Recycling Units . | . . . Scanalyzers . | . . . Garrison Access . | . . . Data Cores Recovered . | . . . Used . | . . . Hacking Detections 6 | . 6 . Full Trace Events 2 | . 2 . Feedback Events . | . . . Feedback Blocked . | . . . Robot Schematics Acquired . | . . . Robots Built . | . . . Authchips . | . . . Time . | . . . Total Robot Build Rating . | . . . Part Schematics Acquired . | . . . Parts Built . | . . . Authchips . | . . . Time . | . . . Total Part Build Rating . | . . . Parts Repaired . | . . . Time . | . . . Parts Recycled . | . . . Recycled Matter . | . . . Retrieved Matter . | . . . Retrieved Components . | . . . Parts Scanalyzed . | . . . Part Schematics Acquired . | . . . Parts Damaged . | . . . Bothacking | -11 -10 -10 ------------ Run | Yrd Mat Min Used RIF Installer . | . . . Robots Hacked . | . . . Non-combat . | . . . Combat . | . . . Robot Hacks Applied . | . . . Relay Couplers Released . | . . . Fabnet Peak Effective % . | . . . Robots Rewired . | . . . Allies Hacked . | . . . Hacks Repelled . | . . . Allies | -11 -10 -10 -------- Run | Yrd Mat Min Total Allies . | . . . Largest Group . | . . . Highest-Rated Group . | . . . Highest-Rated Ally . | . . . Total Orders . | . . . Ally Attacks . | . . . Total Damage . | . . . Kills . | . . . Allies Corrupted . | . . . Allies Melted . | . . . Intel | -11 -10 -10 ------- Run | Yrd Mat Min Robot Analysis Total . | . . . Derelict Logs Recovered . | . . . Drone Launches . | . . . Drone Recoveries . | . . . Exploration | -11 -10 -10 ------------- Run | Yrd Mat Min Turns Passed 1434 | 83 1107 244 Spaces Moved 771 | 50 589 132 Core 11 | 11 . . Treads 657 | 39 589 29 Legs . | . . . Wheels 103 | . . 103 Hover . | . . . Flight . | . . . Fastest Speed 50 | 50 160 95 Average Speed 149 | 135 160 109 Slowest Speed 160 | 160 160 160 Overloaded Moves . | . . . Propulsion Burnouts . | . . . Robots Hopped . | . . . Cave-ins Triggered . | . . . Exploration Rate (%) 37 | 4 81 26 Regions Visited 2 Branch Regions 1 Pre-discovered Areas . | . . . Known Exits Taken . | . . . Unknown Exits Taken 2 | 1 1 . Scrap Searched . | . . . Spaces Dug 6 | . 6 . Terrain Destroyed 65 | . 43 22 Melee . | . . . Projectile 5 | . . 5 AOE 60 | . 43 17 Terrain Rammed . | . . . Walls Destroyed . | . . . Machines Disabled . | . . . Actions | -11 -10 -10 --------- Run | Yrd Mat Min Total 923 | 65 674 184 Wait 34 | . 18 16 Move 769 | 49 588 132 Hop . | . . . Pick Up 28 | 10 17 1 Fast Attach . | . . . Attach 20 | 6 6 8 Detach . | . . . Swap 5 | . 2 3 Drop 1 | . 1 . Fire 63 | . 39 24 Melee . | . . . Ram . | . . . Kick . | . . . Crush 3 | . 3 . Escape Stasis . | . . . Rewire . | . . . Trap . | . . . Miscellaneous . | . . . Route ------- -11/Scrapyard -10/Materials (discovered 4 exits: *Mat x3 / [*Min]) -10/Mines History --------- Turn | Location | Event 2 | -11/Scrapyard | Met Revision 17 9 | -11/Scrapyard | Discovered new exit (range 14) 84 | -11/Scrapyard | Entered Materials 291 | -10/Materials | Discovered new exit (range 12) 314 | -10/Materials | Build established: Mutant 398 | -10/Materials | Identified exit to Materials 1191 | -10/Materials | Entered Mines 1200 | -10/Mines | Assembled infested the area 1205 | -10/Mines | Assisted by a Guerilla fighting off Assembled 1253 | -10/Mines | Core integrity fell below 50% 1265 | -10/Mines | Core integrity fell below 20% 1309 | -10/Mines | Lost 8 parts (2p3n1u2w) 1435 | -10/Mines | Destroyed by as-82810 with Assembled Rifle Last Messages --------------- Acquired 16 matter. Acquired 3 matter. U-05 Engineer builds a Wall. U-05 Engineer lays Concrete. U-05 Engineer builds a Wall. U-05 Engineer lays Concrete. U-05 Engineer builds a Wall. U-05 Engineer lays Concrete. U-05 Engineer builds a Wall. K-01 Serf collects debris. Acquired 10 matter. K-01 Serf collects debris. U-05 Engineer lays Concrete. K-01 Serf collects debris. U-05 Engineer lays Concrete. K-01 Serf destroyed. U-05 Engineer lays Concrete. as-82810 knocked back. Overheating: System interference. Imp. Light Cannon temporarily disabled. Map ----- +----------------------------------------------------+ | ?????????????????????????????????????????????????? | | ?????????????????????????????????????????????????? | | ?????????????????????????????????????????????????? | | ?????????????????????????????????????????????????? | | ?????????????????????????????????????????????????? | | ?????????????????????????????????????????????????? | | ????????????????###??????????????????????????????? | | ????????????????%%!??????????????????????????????? | | ????????????????#=#??????????????????????????????? | | ????????????????#!#??????????????????????????????? | | ????????????????%=%??????????????????????????????? | | ????????????????#|#??????????????????????????????? | | ????????????????#!#??????????????????????????????? | | ????????????????#%#??????????????????????????????? | | ????????????????# ########???????????????????????? | | ????????????????# #???????????????????????? | | ??????????#?????# ###### #???????????????????????? | | ?????????# ?????# #????# #???????????????????????? | | ?????????# ?????# ##???# #???????????????????????? | | ???""????# ?????# #???# #???????????????????????? | | ????""??? ?????# #???# #???????????????????????? | | ?????" ??# ?????# ##??# #???????????????????????? | | ??????? ##%###??# #??# #???????????????????????? | | ????????=*!! #?## #??#=#???#???????????????????? | | ?????????$%* ### "##??#%##;;#####???????????????? | | ??????????# ## #???#*@ %a% #???????????? | | ??????????# %## ##???###########???????????????? | | ??????????# "## #??????????????????????????????? | | ??????????# ## #??????????????????????????????? | | ??????????# ##??????????????????????????????? | | ??????????# #???????????????????????????????? | | ??????????###%####???????????????????????????????? | | ??????????### ###????????????????????????????????? | | ??????????# # # ##???????????????????????????????? | | ########### # ## ####????????????????????????????? | | # #????????????????????????????? | | # #??########??????????????????? | | # """ """ #?##"" "####???????????????? | | # """ "" ### #???????????????? | | # """ """ ##" #???????????????? | | # ##" #???????????????? | | # """ """ "" ###" #???????????????? | | # """ """ """ ## #???????????????? | | # """ """ " ## #???????????????? | | " [ = # #???????????????? | | # """ " = " #???????????????? | | # """ %"" #???????????????? | | # "" """ """ " # ## #???????????????? | | # ### #???????????????? | | ##########"######### ## ####???????????????? | +----------------------------------------------------+ Best States ------------- Heat Dissipation 25 Energy Generation 14 Energy Capacity 250 Matter Stores 300 Matter Capacity 300 Sight Range 16 Terrain Scan Density 10 Armor Coverage 80 Propulsion Shielding 33 Evasion (%) 50 Recoil Reduction 2 Item Schematics ----------------- None Robot Schematics ------------------ None Fabricated ------------ Nothing Alien Tech Used ----------------- None Achievements -------------- None Challenges ------------ None Game ------ Seed TrackerHardcellCycler Manual? 0 Play Time 00:17:54 Cumulative 70.2 hours Start 2024.06.03 @ 04:45:40 End 2024.06.03 @ 04:59:57 Sessions 1 Manual Loads 0 Difficulty Rogue Special Mode None Game No. 42 Rogue 42 Adventurer 0 Explorer 0 Win Type - Total 2 Types 2/0/0/0/0/0/0/0/0 Lore% 29 Gallery% 51 Achievement% 44 Wizard Run 0 Options --------- Layout 1 ASCII 0 Keyboard 0 Movement Mouse Keybinds 0 Fullscreen 1 Font 24/Smallcaps Map View 50x35 Zoom Use 0% Tactical HUD 0 Map Filters NONE Filters NONE Steam 1 RUN: 1e1dffb5-c2eb-4253-9371-8afc0de30093